Cogmind - Beta 14 @@@ ROGUE MODE // 2024.08.13 @ 19:38:39 Player: ph0 Result: Destroyed by G-34 Mercenary with Small Laser Performance ------------- Evolutions (0) 0 Regions Visited (1) 200 Robots Destroyed (46) 230 Value Destroyed (1047) 1047 Prototype IDs (2) 40 Alien Tech Used (0) 0 Bonus (146) 146 TOTAL SCORE: 1663 Bonus ------- High Alert Combat Kills 146 Cogmind --------- Core Integrity 0/250 Matter 30/300 Energy 117/125 System Corruption 0% Temperature Cool (27) Movement Walking (120) Location -10/Materials Parts ------- > --- POWER (1) -------- Light Ion Engine > --- PROPULSION (2) --- Aluminum Leg > --- UTILITY (2) ------ Weapon Shielding > --- WEAPON (2) ------- Small Laser > --- INVENTORY (5) ---- Light Treads Light Treads Small Laser Light Assault Rifle Light Assault Rifle Peak State ------------ > --- POWER ------------ Ion Engine > --- PROPULSION ------- Light Treads Light Treads > --- UTILITY ---------- Small Storage Unit Shield Generator > --- WEAPON ----------- Light Assault Rifle Mini Grenade Launcher > --- INVENTORY -------- Light Ion Engine Small Laser Small Laser [Rating: 9] Favorites ----------- Power Ion Engine Engine Ion Engine Propulsion Light Treads Treads Light Treads Leg Aluminum Leg Hover Unit Backup Propulsion I Utility Small Storage Unit Device Shield Generator Storage Small Storage Unit Protection Weapon Shielding Weapon Mini Grenade Launcher Energy Gun Small Laser Ballistic Gun Light Assault Rifle Launcher Mini Grenade Launcher Build | -11 -10 ------- Run | Yrd Mat Slots Evolved . | . . Power . | . . Propulsion . | . . Utility . | . . Weapon . | . . Parts Attached 22 | 5 17 Power 2 | . 2 Engine 2 | . 2 Core . | . . Reactor . | . . Propulsion 12 | 2 10 Treads 2 | 2 . Leg 5 | . 5 Wheel . | . . Hover 5 | . 5 Flight . | . . Utility 3 | . 3 Device 1 | . 1 Storage 1 | . 1 Processor . | . . Hackware . | . . Protection 1 | . 1 Artifact . | . . Weapon 5 | 3 2 Energy Gun 3 | 2 1 Energy Cannon . | . . Ballistic Gun 1 | 1 . Ballistic Cannon . | . . Launcher 1 | . 1 Special Weapon . | . . Impact Weapon . | . . Slashing Weapon . | . . Piercing Weapon . | . . Special Melee Weapon . | . . Unidentified Prototypes . | . . Parts Lost 9 | . 9 Power 1 | . 1 Propulsion 4 | . 4 Utility 2 | . 2 Weapon 2 | . 2 Highest Loss Streak 3 | . 3 To Critical Strikes . | . . Average Slot Usage (%) 94 | . 94 Engine 13 | . 13 Treads 10 | . 10 Leg 9 | . 9 Hover 7 | . 7 Storage 13 | . 13 Protection 10 | . 10 Energy Gun 6 | . 6 Ballistic Gun 7 | . 7 Launcher 13 | . 13 Peak Build Rating 9 | 4 9 Average Rating 7 | 2 7 On Entrance 2 | . 4 Naked Turns . | . . Heaviest Build 14 | 2 14 Greatest Support 40 | 40 40 Greatest Overweight (x) 2 | . 2 Average Overweight (x) . | . . Largest Inventory Capacity 8 | 5 8 Average Capacity 7 | 5 7 Most Carried 8 | 5 8 Average Carried 5 | 3 5 Final Capacity 5 | 5 5 Final Carried 5 | 4 5 Class Distribution -------------------- 100% | Mutant Dominant Class ---------------- Mutant | -10/Materials Resources | -11 -10 ----------- Run | Yrd Mat Matter Collected 607 | 110 497 Remotely . | . . Salvage Created 960 | . 960 Parts 75 | . 75 Haulers Intercepted 1 | . 1 Recyclers Shooed 3 | . 3 Parts Field Recycled . | . . Retrieved Matter . | . . Parts Self-Destructed . | . . Prevented . | . . Kills | -11 -10 ------- Run | Yrd Mat Combat Hostiles Destroyed 29 | . 29 Guns 5 | . 5 AOE 24 | . 24 Classes Destroyed 8 | . 8 Worker 7 | . 7 Builder 6 | . 6 Tunneler 1 | . 1 Hauler 1 | . 1 Recycler 2 | . 2 Watcher 3 | . 3 Swarmer 3 | . 3 Grunt 26 | . 26 Best Kill Streak 10 | . 10 Combat Bots Only 6 | . 6 Max Kills in Single Turn 4 | . 4 Gunslinging . | . . Exploded 3 | . 3 Melee . | . . Uniques/NPCs Destroyed . | . . Combat | -11 -10 -------- Run | Yrd Mat Hostile Shots Fired 98 | . 98 Missed 31 | . 31 Damage Taken 1150 | . 1150 Core 253 | . 253 Absorbed by Shields 28 | . 28 Redirected to Shielding 39 | . 39 Regen/Repaired (Parts) 26 | . 26 Core Remaining (%) 100 | 100 . Volleys Fired 81 | . 81 Largest 2 | . 2 Hottest 70 | . 70 Shots Fired 122 | . 122 Gun 77 | . 77 Cannon . | . . Launcher 45 | . 45 Special . | . . Kinetic 52 | . 52 Thermal 25 | . 25 Explosive 45 | . 45 Electromagnetic . | . . Robot Hit Streak 9 | . 9 Robot Miss Streak 5 | . 5 Penetration Max . | . . Secondary Targets . | . . Shots Hit Robots 77 | . 77 Core Hits 72 | . 72 Critical Kills 1 | . 1 Critical Parts Destroyed 1 | . 1 Critical Strikes 2 | . 2 Destroy 2 | . 2 Melee Attacks . | . . Impact . | . . Slashing . | . . Piercing . | . . Sneak Attacks . | . . Combat Hostiles . | . . Follow-up Attacks . | . . Damage Inflicted 3562 | . 3562 Guns 422 | . 422 Cannons . | . . Explosions 3140 | . 3140 Melee . | . . Ramming . | . . Kinetic 251 | . 251 Thermal 171 | . 171 Explosive 3140 | . 3140 Electromagnetic . | . . Impact . | . . Slashing . | . . Piercing . | . . Highest Corruption . | . . Average Corruption . | . . Corruption Purged . | . . Corruption Blocked . | . . Overload Shots . | . . Overflow Damage 97 | . 97 Projectiles . | . . Explosions 97 | . 97 Melee . | . . Knockbacks . | . . Impact . | . . Kinetic . | . . Secondary . | . . Self-Inflicted Damage 349 | . 349 Shots 13 | . 13 Rammed . | . . Targets Rammed . | . . Kicked . | . . Crushed . | . . Highest Temperature 72 | . 72 Average Temperature 23 | . 23 Received Heat Transfer 432 | . 432 Siege Activations . | . . Robots Corrupted . | . . Combat Hostiles . | . . Parts Fried . | . . Impact Corruptions . | . . Robots Melted . | . . Combat Hostiles . | . . Parts Melted . | . . Heat Transferred 400 | . 400 Parts Sabotaged . | . . Parts Stolen . | . . Parts Stripped . | . . Power Chain Reactions . | . . Alert | -11 -10 ------- Run | Yrd Mat Peak Influence 705 | . 705 Initial . | . . Average 396 | . 420 Maximum Alert Level 3 | . 3 Low Security (%) 12 | 100 7 Level 1 45 | . 47 Level 2 41 | . 44 Level 3 . | . . Level 4 . | . . Level 5 . | . . High Security . | . . Max Security . | . . Squads Dispatched 9 | . 9 Investigation 7 | . 7 Extermination . | . . Reinforcement 2 | . 2 Assault . | . . Garrison . | . . Intercept . | . . Searches Triggered . | . . Construction Impeded . | . . Haulers Reinforced . | . . Active Scanning Responses . | . . Cargo Convoy Interrupts . | . . Stealth | -11 -10 --------- Run | Yrd Mat Distress Signals 1 | . 1 Communications Jammed . | . . Distress Signals . | . . Times Spotted 38 | . 38 Peak Tracking Total 5 | . 5 Tactical Retreats 3 | . 3 Traps | -11 -10 ------- Run | Yrd Mat Traps Triggered 1 | . 1 Indirectly . | . . Trap Hack Attempts . | . . Triggered . | . . Disarmed . | . . Reprogrammed . | . . Reused . | . . Traps Extracted . | . . Installed . | . . Triggered . | . . Machines | -11 -10 ---------- Run | Yrd Mat Machines Disabled 9 | . 9 Max in Single Turn 1 | . 1 Machines Repaired . | . . Machines Dismantled . | . . Machines Sabotaged . | . . Overloaded Fab Kills . | . . Hacking | -11 -10 --------- Run | Yrd Mat Machines Accessed 7 | . 7 Terminals 6 | . 6 Fabricators . | . . Repair Stations 1 | . 1 Recycling Units . | . . Scanalyzers . | . . Garrison Access . | . . Total Hacks 33 | . 33 Successful 19 | . 19 Failed 14 | . 14 Catastrophic 5 | . 5 Database Lockouts . | . . Manual . | . . Terminals 24 | . 24 Fabricators . | . . Repair Stations 9 | . 9 Recycling Units . | . . Scanalyzers . | . . Garrison Access . | . . Terminal Hacks 12 | . 12 Record 8 | . 8 Prototype ID Bank 1 | . 1 Scanalyzer Index 1 | . 1 Locate Traps 1 | . 1 Zone Layout 1 | . 1 Fabricator Hacks . | . . Repair Station Hacks 7 | . 7 Scan Component 3 | . 3 Repair 3 | . 3 Refit 1 | . 1 Recycling Unit Hacks . | . . Scanalyzer . | . . Garrison Access Hacks . | . . Unauthorized Hacks . | . . Terminals . | . . Fabricators . | . . Repair Stations . | . . Recycling Units . | . . Scanalyzers . | . . Garrison Access . | . . Data Cores Recovered . | . . Used . | . . Hacking Detections 7 | . 7 Full Trace Events 7 | . 7 Feedback Events . | . . Feedback Blocked . | . . Robot Schematics Acquired . | . . Robots Built . | . . Authchips . | . . Time . | . . Total Robot Build Rating . | . . Part Schematics Acquired . | . . Parts Built . | . . Authchips . | . . Time . | . . Total Part Build Rating . | . . Parts Repaired 3 | . 3 Time 78 | . 78 Parts Recycled . | . . Recycled Matter . | . . Retrieved Matter . | . . Retrieved Components . | . . Parts Scanalyzed . | . . Part Schematics Acquired . | . . Parts Damaged . | . . Bothacking | -11 -10 ------------ Run | Yrd Mat Used RIF Installer . | . . Robots Hacked . | . . Non-combat . | . . Combat . | . . Robot Hacks Applied . | . . Relay Couplers Released . | . . Fabnet Peak Effective % . | . . Robots Rewired . | . . Allies Hacked . | . . Hacks Repelled . | . . Allies | -11 -10 -------- Run | Yrd Mat Total Allies . | . . Largest Group . | . . Highest-Rated Group . | . . Highest-Rated Ally . | . . Total Orders . | . . Ally Attacks . | . . Total Damage . | . . Kills . | . . Allies Corrupted . | . . Allies Melted . | . . Intel | -11 -10 ------- Run | Yrd Mat Robot Analysis Total . | . . Derelict Logs Recovered . | . . Drone Launches . | . . Drone Recoveries . | . . Exploration | -11 -10 ------------- Run | Yrd Mat Turns Passed 1464 | 85 1379 Spaces Moved 793 | 67 726 Core 31 | 31 . Treads 286 | 36 250 Legs 387 | . 387 Wheels . | . . Hover 89 | . 89 Flight . | . . Fastest Speed 50 | 50 116 Average Speed 152 | 109 155 Slowest Speed 240 | 160 240 Overloaded Moves . | . . Propulsion Burnouts . | . . Robots Hopped . | . . Cave-ins Triggered . | . . Exploration Rate (%) 49 | 5 94 Regions Visited 1 Branch Regions . Pre-discovered Areas . | . . Known Exits Taken . | . . Unknown Exits Taken 1 | 1 . Scrap Searched . | . . Spaces Dug . | . . Terrain Destroyed 240 | . 240 Melee . | . . Projectile . | . . AOE 240 | . 240 Terrain Rammed . | . . Walls Destroyed . | . . Machines Disabled . | . . Actions | -11 -10 --------- Run | Yrd Mat Total 940 | 79 861 Wait 20 | . 20 Move 792 | 66 726 Hop . | . . Pick Up 23 | 8 15 Fast Attach . | . . Attach 15 | 4 11 Detach . | . . Swap 7 | 1 6 Drop 2 | . 2 Fire 81 | . 81 Melee . | . . Ram . | . . Kick . | . . Crush . | . . Escape Stasis . | . . Rewire . | . . Trap . | . . Miscellaneous . | . . Route ------- -11/Scrapyard -10/Materials (discovered 4 exits: [*Mat x3] / [*Min]) History --------- Turn | Location | Event 7 | -11/Scrapyard | Discovered new exit (range 15) 86 | -11/Scrapyard | Entered Materials 303 | -10/Materials | Build established: Mutant 319 | -10/Materials | Discovered new exit (range 16) 575 | -10/Materials | Discovered new exit (range 16) 783 | -10/Materials | Repaired Hover Unit 790 | -10/Materials | Repaired Hover Unit 816 | -10/Materials | Repaired Hover Unit 857 | -10/Materials | Core integrity fell below 50% 860 | -10/Materials | Discovered new exit (range 8) 1127 | -10/Materials | Discovered new exit (range 10) 1299 | -10/Materials | Core integrity fell below 20% 1465 | -10/Materials | Destroyed by G-34 Mercenary with Small Laser Last Messages --------------- U-05 Engineer lays Concrete. The unstable cave ceiling collapses. U-05 Engineer lays Concrete. Connecting with Terminal... >>Prototypes Downloading prototype IDs... Imp. Flight Unit Imp. Assault Rifle >>Index(Scanalyzers) No scanalyzers found. >>Traps(Locate) Found 2 traps in 1 array: 2x Explosive Trap Map updated. ALERT: Suspicious activity at Terminal M001. Dispatching Investigation squad. Backup Propulsion I destroyed. Sml. Storage Unit destroyed. Mni. Grenade Launcher destroyed. G-34 Mercenary destroyed. Map ----- +----------------------------------------------------+ | ???????????????????# + #?? | | ???????????????????# # #?? | | ???????????????????# [### ##########+### | | ???????????????????# #?# # | | ???????????????????###########?# + """" """" | | ?#####?????????????????????????# ####??"""" """" | | ?# ##????????????????????????# #?????"""" """" | | ?# #????????????????????????# #???? | | ?### ##????????????????????????# #??# | | ???# #?????????????????????????#+##########+###### | | ???# #?????????????????????????# # **] | | ???# #?????????????????????????# # ** | | ???# #?????????????########????# + ** | | ???# #?????????????# #???# # | | ?### ###???????????? ! #???# #^ ^ | | ?# #???????????? #???# # | | ?# #????????????? #?^^# * # | | ##! T #????????????? #???# # | | " ##????????????? #???### #/# ## | | #?????????????! #?????### ##### | | # #?????????????? #???????# | | # # ##????????????? #?####### = | | # # ##????????????? #?"!"!""# | | # #????????????? # "!"!" # | | # ###################/## # | | t @ r [[ | | = g = < [[ | | # "" %* *[[ | | """ ###########+## ##+#####+##### | | ## """ #???# ######### ? ##### | | ## #???# = #???????# ???? #???? | | ## #???# #???????# ???? #???? | | #### """ #???# #???????# ???? #???? | | ???# """ #???# #???????#???? #???? | | ???# "" #???# #???????????? #???? | | ???# ! #???# #???" ????? #???? | | #### ##??# "T" #??"" #???? #???? | | # ##??# """ #?""" ????########???? | | #??########## ?????????????????? | | # ##??########?# ???????????????????? | | # ##### ## ###+################## | | # ! ^ ^ ^ | | + ^ | | # ! """"" ^ "" | | # ##########+ ##### % """"""""" """ | | " ! ##????# # """ """ """ | | # < #?????# "" # | | #### #?????# = " | | ???#####?????# "" " # | | ?????????????# ### ### | +----------------------------------------------------+ Best States ------------- Heat Dissipation 25 Energy Generation 10 Energy Capacity 250 Matter Stores 224 Matter Capacity 300 Sight Range 16 Terrain Scan Density 10 Weapon Shielding 33 Evasion (%) 55 Recoil Reduction 2 Item Schematics ----------------- None Robot Schematics ------------------ None Fabricated ------------ Nothing Alien Tech Used ----------------- None Achievements -------------- Part-time Mechanic Challenges ------------ None Game ------ Seed HypervelocityGatlingSheargun Manual? 0 Play Time 00:16:55 Cumulative 1.5 hours Start 2024.08.13 @ 19:26:07 End 2024.08.13 @ 19:38:39 Sessions 1 Manual Loads 0 Difficulty Rogue Special Mode None Game No. 4 Rogue 4 Adventurer 0 Explorer 0 Win Type - Total 0 Types 0/0/0/0/0/0/0/0/0 Lore% 0 Gallery% 3 Achievement% 4 Wizard Run 0 Options --------- Layout 1 ASCII 0 Keyboard 0 Movement Arrows Keybinds 0 Fullscreen 2 Font 24/Smallcaps Map View 50x40 Zoom Use 0% Tactical HUD 0 Map Filters NONE Filters NONE Steam 0 RUN: 6cb08119-16b1-47af-aadf-045247cc9d3d